bitfinex/quotes_BTCUSD_20241124
["timestamp","ask_amount","ask_price","bid_price","bid_amount"]
[1732434478223,0.06843768,98052.0,98050.0,0.22771057]
[1732434478492,0.14545288,98051.0,98050.0,0.22771057]
[1732434480326,0.14672781,98051.0,98050.0,0.37771057]
[1732434490275,0.14672781,98051.0,98050.0,0.37942937]
[1732434502399,0.14758721,98051.0,98050.0,0.37942937]
[1732434529593,0.14686121,98051.0,98050.0,0.37942937]
[1732434534863,0.14686121,98051.0,98050.0,0.37902412]
[1732434537172,0.14632067,98051.0,98050.0,0.37902412]
[1732434552597,0.02031228,98051.0,98050.0,0.40923334]
[1732434552835,0.06843728,98051.0,98050.0,0.40923334]
[1732434554171,0.06843728,98051.0,98050.0,0.38919178]
[1732434554832,0.06843728,98051.0,98050.0,0.01188646]
[1732434555271,0.06843728,98051.0,98050.0,0.01824068]
[1732434555515,0.02031228,98051.0,98050.0,0.06554068]
[1732434555725,0.0489844,98051.0,98050.0,0.06554068]
[1732434555939,0.06843728,98051.0,98050.0,0.06554068]
[1732434557018,0.06843728,98051.0,98050.0,1.24890568]
[1732434558526,0.06843728,98051.0,98050.0,1.24890464]
[1732434559154,0.0489844,98051.0,98050.0,1.24890464]
[1732434559380,0.06843728,98051.0,98050.0,1.24890464]
[1732434559745,0.0489844,98051.0,98050.0,1.24890464]
[1732434559944,0.06843728,98051.0,98050.0,1.24890464]
[1732434560470,0.0489844,98051.0,98050.0,1.24890464]
[1732434561302,0.06843728,98051.0,98050.0,1.20160464]
[1732434563457,0.06843728,98051.0,98050.0,1.22460464]
[1732434563902,0.0008594,98051.0,98050.0,1.24672854]
[1732434564116,0.0008594,98051.0,98050.0,1.22460464]
[1732434564334,0.0008594,98051.0,98050.0,1.27160376]
[1732434564968,0.0008594,98051.0,98050.0,1.25707027]
[1732434566706,0.0008594,98051.0,98050.0,1.24724648]
[1732434570790,0.0008594,98051.0,98050.0,1.24724651]
[1732434572686,0.0008594,98051.0,98050.0,1.24810591]
[1732434575998,0.0008594,98051.0,98050.0,1.20110591]
[1732434577698,0.0008594,98051.0,98050.0,0.04037939]
[1732434577900,0.0008594,98051.0,98050.0,1.22374439]
[1732434578117,0.0008594,98051.0,98050.0,0.19037939]
[1732434578335,0.0008594,98051.0,98050.0,1.22374439]
[1732434581539,0.0008594,98051.0,98050.0,1.22374404]
[1732434584911,0.0008594,98051.0,98050.0,1.21012206]
[1732434585088,0.0008594,98051.0,98050.0,1.20074404]
[1732434585603,0.0008594,98051.0,98050.0,1.19315539]
[1732434585851,0.0008594,98051.0,98050.0,1.19401479]
[1732434587014,0.0008594,98051.0,98050.0,1.20684886]
[1732434588912,0.0008594,98051.0,98050.0,1.20684885]
[1732434589151,0.0008594,98051.0,98050.0,1.20049515]
[1732434589346,0.0008594,98051.0,98050.0,1.20684885]
[1732434589606,0.0489847,98056.0,98051.0,0.023]
[1732434589858,0.0489847,98056.0,98053.0,0.023]
[1732434590074,0.0489847,98056.0,98054.0,0.0063537]
[1732434590286,0.0489847,98056.0,98055.0,0.023]
[1732434590472,0.0489847,98056.0,98055.0,0.0293537]
[1732434596079,0.1277847,98056.0,98055.0,0.0293537]
[1732434600288,0.1277847,98056.0,98055.0,0.0063537]
[1732434600510,0.1277847,98056.0,98055.0,0.0293537]
[1732434605777,0.1277847,98056.0,98055.0,0.00635363]
[1732434606001,0.1277847,98056.0,98055.0,0.03951944]
[1732434607523,0.1277847,98056.0,98055.0,0.03951949]
[1732434610148,0.1277847,98056.0,98055.0,0.02935365]
[1732434615024,0.1277847,98056.0,98055.0,0.00635365]
[1732434616684,0.0796597,98056.0,98055.0,0.00635365]
[1732434616957,0.048125,98069.0,98055.0,0.80443063]
[1732434617180,0.6153,98075.0,98073.0,0.023]
[1732434617424,0.0496595,98082.0,98073.0,0.023]
[1732434617425,0.01945288,98079.0,98075.0,0.023]
[1732434617670,0.10105288,98081.0,98077.0,0.023]
[1732434617908,0.0816,98081.0,98079.0,0.023]
[1732434618130,0.0816,98081.0,98080.0,0.02935365]
[1732434618396,0.0816,98081.0,98080.0,0.023]
[1732434618617,0.01945288,98079.0,98078.0,0.023]
[1732434618865,0.0816,98081.0,98078.0,0.023]
[1732434619110,0.01945288,98079.0,98078.0,0.023]
[1732434621230,0.0816,98081.0,98078.0,0.06522965]
[1732434621451,0.01945288,98079.0,98078.0,0.06522965]
[1732434621682,0.01945288,98079.0,98078.0,0.023]
[1732434621926,0.01919107,98079.0,98078.0,0.023]
[1732434624065,0.0833188,98081.0,98078.0,0.023]
[1732434624310,0.01919107,98079.0,98078.0,0.023]
[1732434625727,0.0833188,98081.0,98078.0,0.023]
[1732434625983,0.01919107,98079.0,98078.0,0.023]
[1732434627145,0.01919107,98079.0,98078.0,0.0636701]
[1732434627398,0.01919107,98079.0,98078.0,0.023]
[1732434627797,0.0833188,98081.0,98078.0,0.023]
[1732434629250,0.01919107,98079.0,98078.0,0.023]
[1732434630148,0.10250987,98081.0,98078.0,0.023]
[1732434630374,0.0833188,98081.0,98078.0,0.023]
[1732434630606,0.01919107,98079.0,98078.0,0.023]
[1732434631105,0.01919107,98079.0,98078.0,0.06333989]
[1732434631586,0.0833188,98081.0,98078.0,0.023]
[1732434632547,0.10250987,98081.0,98078.0,0.023]
[1732434634203,0.0017186,98079.0,98078.0,0.023]
[1732434635153,0.0017186,98079.0,98078.0,0.06343896]
[1732434635630,0.0017186,98079.0,98078.0,0.03643878]
[1732434635860,0.0017186,98079.0,98078.0,0.023]
[1732434637968,0.0017186,98079.0,98070.0,0.023]
[1732434638128,0.0017186,98079.0,98071.0,0.15]
[1732434638365,0.0017186,98079.0,98072.0,1.056365]
[1732434638572,0.0017186,98079.0,98075.0,0.023]
[1732434638770,0.0017186,98079.0,98077.0,0.15]
[1732434638986,0.0017186,98079.0,98078.0,0.023]
[1732434640258,0.0017186,98079.0,98070.0,0.023]
[1732434640577,0.0017186,98079.0,98072.0,0.023]
[1732434640810,0.0017186,98079.0,98075.0,0.023]
[1732434641010,0.0017186,98079.0,98078.0,0.023]
[1732434642377,0.0017186,98079.0,98070.0,0.023]
[1732434642611,0.0017186,98079.0,98078.0,0.173]
[1732434642841,0.0017186,98079.0,98078.0,1.206365]
[1732434645386,0.0017186,98079.0,98051.0,0.18080893]
[1732434645387,0.1741436,98079.0,98054.0,0.15]
[1732434645577,0.1741436,98079.0,98050.0,0.0008594]
[1732434645578,0.0762,98074.0,98070.0,0.023]
[1732434647707,0.0485,98073.0,98070.0,0.023]
[1732434651361,0.048125,98072.0,98050.0,0.0008594]
[1732434651584,0.06731607,98070.0,98069.0,0.06462977]
[1732434651810,0.14251607,98070.0,98069.0,0.06462977]
[1732434658289,0.14251607,98070.0,98069.0,0.06548917]
[1732434660313,0.0482,98069.0,98038.0,0.173]
[1732434660589,0.0482,98069.0,98038.0,1.206365]
[1732434660818,0.0482,98069.0,98040.0,0.15]
[1732434661051,0.0482,98069.0,98042.0,0.15]
[1732434661299,0.0482,98069.0,98043.0,1.033365]
[1732434661547,0.0482,98069.0,98044.0,0.15]
[1732434661778,0.0482,98069.0,98046.0,0.15]
[1732434662020,0.0482,98069.0,98048.0,0.15]
[1732434662250,0.0482,98069.0,98050.0,0.173]
[1732434662505,0.0482,98069.0,98052.0,0.173]
[1732434662753,0.0482,98067.0,98054.0,0.173]
[1732434663003,0.0482,98067.0,98056.0,0.15]
[1732434663234,0.0482,98067.0,98059.0,0.023]
[1732434663471,0.048125,98062.0,98061.0,0.15]
[1732434663717,0.173125,98062.0,98061.0,0.15]
[1732434664455,0.173125,98062.0,98031.0,0.0945]
[1732434664682,0.0768,98060.0,98032.0,1.206365]
[1732434664912,0.0482,98058.0,98034.0,0.173]
[1732434665120,0.0482,98058.0,98036.0,0.15]
[1732434665338,0.124925,98057.0,98039.0,0.023]
[1732434665573,0.124925,98057.0,98038.0,0.15]
[1732434665574,0.0482,98056.0,98041.0,0.173]
[1732434665779,0.0482,98056.0,98043.0,0.173]
[1732434666221,0.0482,98056.0,98045.0,0.173]
[1732434666444,0.0482,98056.0,98047.0,0.173]
[1732434666694,0.0482,98056.0,98049.0,0.15]
[1732434666911,0.0482,98056.0,98049.0,0.173]
[1732434667785,0.0482,98056.0,98031.0,0.0945]
[1732434667786,0.0482,98056.0,98048.0,0.023]
[1732434670938,0.0482,98056.0,98048.0,0.06464396]
[1732434671151,0.0482,98056.0,98048.0,0.023]
[1732434672024,0.0482,98056.0,98048.0,0.06430535]
[1732434672273,0.0482,98056.0,98048.0,0.023]
[1732434672672,0.13872584,98059.0,98039.0,0.023]
[1732434672673,0.048125,98050.0,98039.0,0.023]
[1732434672883,0.0482,98049.0,98040.0,0.15]
[1732434673086,0.0482,98049.0,98043.0,0.023]
[1732434674801,0.0768,98048.0,98043.0,0.023]
[1732434677408,0.0768,98048.0,98038.0,0.0008597]
[1732434677614,0.0487,98047.0,98040.0,0.15]
[1732434677823,0.0487,98047.0,98042.0,0.15]
[1732434678029,0.0487,98047.0,98043.0,0.997982]
[1732434678232,0.0487,98047.0,98044.0,0.15]
[1732434679139,0.0487,98047.0,98046.0,0.15]
[1732434679346,0.0487,98047.0,98046.0,1.183365]
[1732434679562,0.0487,98047.0,98046.0,0.15]
[1732434680052,0.0487,98047.0,98040.0,0.15]
[1732434680256,0.0487,98047.0,98042.0,0.15]
[1732434680475,0.0487,98047.0,98044.0,0.15]
[1732434680684,0.0487,98047.0,98045.0,1.033365]
[1732434681129,0.0487,98047.0,98046.0,0.15]
[1732434681338,0.0487,98047.0,98046.0,1.183365]
[1732434686549,0.048415,98047.0,98046.0,1.146082]
[1732434687607,0.048415,98047.0,98039.0,0.0008597]
[1732434692513,0.048415,98047.0,98039.0,0.0238597]
[1732434698516,0.0462,98045.0,98039.0,0.0238597]
[1732434699443,0.0462,98045.0,98039.0,0.0008597]
[1732434699846,0.0462,98043.0,98039.0,0.0008597]
[1732434708502,0.0462,98041.0,98014.0,0.08427416]
[1732434708713,0.0017192,98047.0,98014.0,0.08427416]
[1732434708714,0.0462,98039.0,98014.0,0.08627416]
[1732434709133,0.0462,98039.0,98014.0,0.025]
[1732434709382,0.0017192,98047.0,98014.0,0.025]
[1732434709591,0.0017192,98047.0,98014.0,0.08627416]
[1732434709817,0.0017192,98047.0,98014.0,0.025]
[1732434710024,0.0017192,98047.0,98016.0,0.023]
[1732434710450,0.0498442,98047.0,98015.0,0.023]
[1732434710685,0.048125,98045.0,98013.0,0.023]
[1732434712414,0.0462,98043.0,98015.0,0.023]
[1732434712660,0.078,98042.0,98016.0,0.00635451]
[1732434712851,0.0462,98040.0,98017.0,0.02935451]
[1732434713076,0.0462,98038.0,98019.0,0.023]
[1732434713328,0.0462,98038.0,98021.0,0.023]
[1732434713540,0.0462,98038.0,98022.0,0.00635451]
[1732434713793,0.078,98037.0,98023.0,0.02935451]
[1732434714479,0.078,98037.0,98025.0,0.023]
[1732434714683,0.078,98037.0,98027.0,0.023]
[1732434714910,0.078,98037.0,98029.0,0.023]
[1732434715119,0.078,98037.0,98030.0,0.00635451]
[1732434715328,0.078,98037.0,98012.0,0.15]
[1732434715329,0.078,98037.0,98031.0,0.02935451]
[1732434715532,0.078,98037.0,98033.0,0.023]
[1732434715710,0.078,98037.0,98034.0,0.00635451]
[1732434715948,0.078,98037.0,98035.0,0.00635451]
[1732434716378,0.078,98037.0,98036.0,0.00635451]
[1732434716821,0.1268,98037.0,98036.0,0.00635451]
[1732434718166,0.1268,98037.0,98036.0,0.00635452]
[1732434719270,0.1268,98037.0,98036.0,0.00721412]
[1732434723865,0.1268,98037.0,98036.0,0.0008596]
[1732434724072,0.1268,98037.0,98036.0,0.00721407]
[1732434727504,0.1268,98037.0,98036.0,0.00721422]
[1732434728364,0.1268,98037.0,98036.0,0.0008596]
[1732434728583,0.1268,98037.0,98036.0,0.00721422]
[1732434731293,0.1285194,98037.0,98036.0,0.00721422]
[1732434732056,0.1766444,98037.0,98036.0,0.00721422]
[1732434738692,0.1766444,98037.0,98036.0,0.0008596]
[1732434738896,0.1766444,98037.0,98036.0,0.00721425]
[1732434741329,0.15114115,98037.0,98036.0,0.00721425]
[1732434741558,0.04918483,98037.0,98036.0,0.00721425]
[1732434744300,0.04918483,98037.0,98036.0,0.00721475]
[1732434744729,0.17808483,98037.0,98036.0,0.00721475]
[1732434752099,0.17935992,98037.0,98036.0,0.00721475]
[1732434760745,0.17935992,98037.0,98036.0,0.00721472]
[1732434761981,0.13255992,98037.0,98036.0,0.00721472]
[1732434762181,0.04918483,98037.0,98036.0,0.00721472]
[1732434762628,0.04918483,98037.0,98026.0,0.07105223]
[1732434762629,0.048125,98036.0,98026.0,0.07105223]
[1732434763210,0.048125,98036.0,98026.0,0.11324804]
[1732434763813,0.00105983,98037.0,98026.0,0.11324804]
[1732434763814,0.04918483,98037.0,98026.0,0.11324804]
[1732434764618,0.048125,98036.0,98027.0,0.15]
[1732434764901,0.04918483,98037.0,98027.0,0.15]
[1732434765808,0.04918483,98037.0,98028.0,0.046]
[1732434768156,0.00105983,98037.0,98028.0,0.046]
[1732434768563,0.04918483,98037.0,98028.0,0.046]
[1732434770435,0.04918483,98037.0,98028.0,0.03989935]
[1732434771459,0.00105983,98037.0,98029.0,0.023]
[1732434772244,0.00105983,98037.0,98031.0,0.173]
[1732434772490,0.0017192,98047.0,98034.0,0.023]
[1732434772691,0.14044504,98047.0,98036.0,0.15]
[1732434773027,0.18857004,98047.0,98038.0,0.15]
[1732434773223,0.14044504,98047.0,98038.0,0.15]
[1732434773428,0.0017192,98047.0,98040.0,0.15]
[1732434774547,0.048125,98046.0,98040.0,0.15]
[1732434774722,0.0017192,98047.0,98041.0,0.00635417]
[1732434775024,0.0017192,98047.0,98040.0,0.15]
[1732434775025,0.0017192,98047.0,98042.0,0.00635417]
[1732434775200,0.0017192,98047.0,98040.0,0.15]
[1732434776668,0.0017192,98047.0,98041.0,0.30599]
[1732434776814,0.0017192,98047.0,98042.0,0.15]
[1732434778160,0.0017192,98047.0,98043.0,0.00635396]
[1732434778509,0.0017192,98047.0,98044.0,0.00635396]
[1732434778664,0.0017192,98047.0,98045.0,0.00635396]
[1732434778859,0.0017192,98047.0,98046.0,0.00635396]
[1732434785163,0.0017194,98048.0,98046.0,0.00635396]
[1732434785376,0.0017194,98048.0,98047.0,0.00635396]
[1732434786005,0.0017194,98048.0,98047.0,0.46233396]
[1732434788555,0.048125,98054.0,98048.0,0.15]
[1732434788690,0.048125,98054.0,98049.0,0.31232371]
[1732434788896,0.048125,98054.0,98050.0,0.15]
[1732434789105,0.048125,98054.0,98050.0,0.15635368]
[1732434789316,0.048125,98054.0,98050.0,0.15]
[1732434789522,0.048125,98054.0,98051.0,0.00635367]
[1732434789721,0.048125,98054.0,98052.0,0.00635367]
[1732434789988,0.048125,98054.0,98053.0,0.00635367]
[1732434791726,0.0498438,98054.0,98053.0,0.00635367]
[1732434791966,0.0017188,98054.0,98053.0,0.00635367]
[1732434792855,0.0017188,98054.0,98050.0,0.15]
[1732434793037,0.0017188,98054.0,98051.0,0.00635362]
[1732434793265,0.0017188,98054.0,98052.0,0.00635362]
[1732434793477,0.0498438,98054.0,98053.0,0.00635362]
[1732434793679,0.0017188,98054.0,98053.0,0.00635362]
[1732434794125,0.0498438,98054.0,98053.0,0.00635362]
[1732434794641,0.0498438,98054.0,98049.0,0.30597]
[1732434794642,0.0498438,98054.0,98049.0,0.27108908]
[1732434795072,0.0017188,98054.0,98049.0,0.27108908]
[1732434795513,0.13872584,98053.0,98049.0,0.27108908]
[1732434796141,0.22012584,98053.0,98049.0,0.31153405]
[1732434796578,0.0814,98053.0,98049.0,0.31153405]
[1732434796787,0.22012584,98053.0,98049.0,0.31153405]
[1732434797660,0.22012584,98053.0,98050.0,0.15]
[1732434797661,0.0814,98053.0,98050.0,0.15]
[1732434797862,0.22012584,98053.0,98050.0,0.15]
[1732434798853,0.0814,98053.0,98050.0,0.15]
[1732434799060,0.22012584,98053.0,98050.0,0.15]
[1732434799455,0.0814,98053.0,98050.0,0.15]
[1732434799662,0.22012584,98053.0,98050.0,0.15]
[1732434802628,0.0814,98053.0,98050.0,0.15]
[1732434802877,0.22012584,98053.0,98050.0,0.15]
[1732434803083,0.0814,98053.0,98050.0,0.15]
[1732434803808,0.0831186,98053.0,98050.0,0.15]
[1732434805574,0.22184444,98053.0,98050.0,0.15]
[1732434806897,0.0831186,98053.0,98050.0,0.15]
[1732434807338,0.22184444,98053.0,98050.0,0.15]
[1732434807538,0.0831186,98053.0,98050.0,0.15]
[1732434810444,0.22184444,98053.0,98050.0,0.15]
[1732434811231,0.13872584,98052.0,98050.0,0.15]
[1732434811453,0.0017186,98053.0,98050.0,0.15]
[1732434812634,0.048125,98064.0,98052.0,0.15]
[1732434812833,0.048125,98064.0,98054.0,0.15]
[1732434813083,0.048125,98064.0,98056.0,0.15]
[1732434813355,0.048125,98064.0,98058.0,0.15]
[1732434815822,0.18685084,98064.0,98058.0,0.15]
[1732434816033,0.048125,98064.0,98058.0,0.15]
[1732434817056,0.048125,98064.0,98060.0,0.15]
[1732434817486,0.0498434,98064.0,98060.0,0.15]
[1732434819310,0.18856924,98064.0,98060.0,0.15]
[1732434819507,0.0498434,98064.0,98060.0,0.15]
[1732434819921,0.18856924,98064.0,98060.0,0.15]
[1732434820572,0.0498434,98064.0,98060.0,0.15]
[1732434820745,0.13872584,98061.0,98060.0,0.15]
[1732434821572,0.0498434,98064.0,98060.0,0.15]
[1732434822519,0.18856924,98064.0,98060.0,0.15]
[1732434822933,0.18856924,98064.0,98059.0,0.18813825]
[1732434823144,0.0498434,98064.0,98059.0,0.18813825]
[1732434823297,0.18856924,98064.0,98059.0,0.18813825]
[1732434825171,0.18856924,98064.0,98060.0,0.15]
[1732434825672,0.13872584,98061.0,98060.0,0.15]
[1732434826516,0.13872584,98063.0,98060.0,0.15]
[1732434830900,0.13872584,98063.0,98061.0,0.24349]
[1732434831535,0.0498434,98064.0,98061.0,0.24349]
[1732434831898,0.0017184,98064.0,98061.0,0.24349]
[1732434832114,0.0498434,98064.0,98061.0,0.24349]
[1732434832322,0.0017184,98064.0,98061.0,0.24349]
[1732434833123,0.0017184,98064.0,98062.0,0.15]
[1732434833777,0.0498434,98064.0,98062.0,0.15]
[1732434834930,0.0017184,98064.0,98062.0,0.15]
[1732434841349,0.18685084,98066.0,98062.0,0.15]
[1732434843031,0.0017184,98064.0,98061.0,0.17274287]
[1732434845114,0.0017184,98064.0,98062.0,0.15]
[1732434861091,0.0017184,98064.0,98063.0,0.03248845]
[1732434866831,0.18812551,98066.0,98063.0,0.03884112]
[1732434867064,0.18812551,98066.0,98064.0,0.00635267]
[1732434867279,0.18812551,98066.0,98065.0,0.00635267]
[1732434873571,0.18812551,98066.0,98062.0,0.15]
[1732434873857,0.18812551,98066.0,98065.0,0.00635267]
[1732434878767,0.18812551,98066.0,98061.0,0.05542926]
[1732434879874,0.04939967,98066.0,98061.0,0.05542926]
[1732434880065,0.18685084,98066.0,98064.0,0.0008592]
[1732434880422,0.18856924,98066.0,98064.0,0.0008592]
[1732434882229,0.18856924,98066.0,98064.0,0.0017833]
[1732434882441,0.18856924,98066.0,98064.0,0.0038227]
[1732434884173,0.00127468,98065.0,98064.0,0.0038227]
[1732434886110,0.18856924,98066.0,98064.0,0.0038227]
[1732434886725,0.0498434,98066.0,98064.0,0.0038227]
[1732434887151,0.18856924,98066.0,98064.0,0.0038227]
[1732434887584,0.00127468,98065.0,98064.0,0.0038227]
[1732434890477,0.00127468,98065.0,98059.0,0.01579023]
[1732434890708,0.00127468,98065.0,98060.0,0.00635272]
[1732434890869,0.00127468,98065.0,98061.0,0.00635272]
[1732434891075,0.00127468,98065.0,98062.0,0.00635272]
[1732434891361,0.00127468,98065.0,98063.0,0.00635272]
[1732434891598,0.00127468,98065.0,98064.0,0.00635272]
[1732434893224,0.00127468,98065.0,98064.0,0.15635272]
[1732434893434,0.18856924,98066.0,98064.0,0.00635272]
[1732434893645,0.18856924,98066.0,98033.0,0.00885577]
[1732434893852,0.18856924,98066.0,98034.0,0.1779127]
[1732434893853,0.002,98062.0,98034.0,0.1779127]
[1732434894054,0.00499309,98065.0,98034.0,0.173]
[1732434894269,0.00299309,98065.0,98034.0,0.173]
[1732434894888,0.00299309,98065.0,98034.0,0.023]
[1732434896273,0.0775,98063.0,98034.0,0.023]
[1732434896799,0.0775,98063.0,98036.0,0.2201]
[1732434897720,0.0775,98063.0,98038.0,0.173]
[1732434897991,0.0775,98063.0,98040.0,0.173]
[1732434898179,0.0775,98063.0,98042.0,0.15]
[1732434898379,0.0775,98063.0,98044.0,0.173]
[1732434898565,0.0775,98063.0,98046.0,0.15]
[1732434898767,0.0775,98063.0,98048.0,0.173]
[1732434898938,0.0775,98063.0,98050.0,0.15]
[1732434899157,0.0775,98063.0,98052.0,0.15]
[1732434899360,0.0775,98063.0,98042.0,0.023]
[1732434899361,0.0775,98063.0,98054.0,0.15]
[1732434900796,0.0498,98062.0,98054.0,0.15]
[1732434900988,0.0498,98062.0,98056.0,0.15]
[1732434903055,0.0775,98061.0,98056.0,0.15]
[1732434903394,0.1273,98061.0,98056.0,0.15]
[1732434904532,0.002,98062.0,98056.0,0.15]
[1732434904533,0.002,98058.0,98056.0,0.15]
[1732434904761,0.0012747,98060.0,98056.0,0.15]
[1732434904762,0.002,98060.0,98056.0,0.15]
[1732434906454,0.002,98060.0,98057.0,0.00635312]
[1732434906676,0.002,98060.0,98058.0,0.00635312]
[1732434906895,0.002,98060.0,98059.0,0.00635312]
[1732434907533,0.0795,98060.0,98059.0,0.00635312]
[1732434907737,0.1293,98060.0,98059.0,0.00635312]
[1732434908820,0.1293,98060.0,98059.0,0.00635316]
[1732434910252,0.1293,98060.0,98056.0,0.15]
[1732434912319,0.1273,98060.0,98056.0,0.15]
[1732434913494,0.002,98058.0,98056.0,0.15]
[1732434914142,0.12857475,98060.0,98056.0,0.15]
[1732434914143,0.13057475,98060.0,98056.0,0.15]
[1732434914597,0.002,98058.0,98056.0,0.15]
[1732434920594,0.00127475,98059.0,98056.0,0.15]
[1732434924574,0.00127475,98059.0,98056.0,0.13835913]
[1732434925263,0.1273,98060.0,98056.0,0.13835913]
[1732434925264,6e-08,98060.0,98056.0,0.13835913]
[1732434925384,0.00094613,98060.0,98056.0,0.13835913]
[1732434926628,6e-08,98060.0,98056.0,0.13835913]
[1732434926752,0.00094613,98060.0,98056.0,0.13835913]
[1732434927872,6e-08,98060.0,98056.0,0.13835913]
[1732434928092,0.00094613,98060.0,98056.0,0.13835913]
[1732434929261,0.05167308,98061.0,98056.0,0.13835913]
[1732434929524,0.048219,98063.0,98056.0,0.13835913]
[1732434929755,0.048219,98063.0,98056.0,0.13921833]
[1732434929980,0.0017184,98060.0,98056.0,0.13921833]
[1732434956056,0.1274184,98060.0,98056.0,0.0008592]
[1732434957605,0.1274184,98060.0,98056.0,0.1508592]
[1732434959917,0.0504184,98060.0,98056.0,0.1508592]
[1732434962014,0.0017184,98060.0,98056.0,0.1508592]
[1732434966119,0.0017186,98061.0,98056.0,0.1508592]
[1732434968603,0.0017186,98060.0,98056.0,0.1508592]
[1732434974076,0.0017186,98060.0,98055.0,0.21453949]
[1732434976709,0.0017186,98060.0,98056.0,0.15]
[1732434979145,0.0017186,98060.0,98056.0,0.14794536]
[1732434982463,0.0017186,98060.0,98057.0,0.00635363]
[1732434982678,0.0017186,98060.0,98058.0,0.00635363]
[1732434982902,0.0017186,98060.0,98059.0,0.00635363]
[1732434984344,0.0017186,98060.0,98056.0,0.14794536]
[1732434987910,0.0017186,98060.0,98056.0,0.23074536]
[1732434990249,0.0017186,98060.0,98056.0,0.23069838]
[1732434992706,0.0017186,98060.0,98057.0,0.0456]
[1732434999568,0.0017186,98060.0,98058.0,0.2278]
[1732434999781,0.0017186,98060.0,98059.0,0.1974]
[1732435003281,0.0017186,98060.0,98059.0,0.2752]
[1732435003783,0.0017186,98060.0,98059.0,0.05757084]
[1732435004268,0.0017186,98060.0,98055.0,0.21539879]
[1732435005710,0.0017186,98060.0,98056.0,0.15]
[1732435006502,0.0017186,98060.0,98057.0,0.0474]
[1732435008413,0.0017186,98060.0,98056.0,0.2286593]
[1732435009275,0.0017186,98060.0,98056.0,0.1508593]
[1732435011053,0.0017186,98060.0,98057.0,0.0778]
[1732435011504,0.0017186,98060.0,98056.0,0.1508593]
[1732435021259,0.0017186,98060.0,98056.0,0.4568063]
[1732435044876,0.0017186,98060.0,98058.0,0.15]
[1732435048609,0.0017186,98060.0,98058.0,0.13708413]
[1732435050635,0.0017186,98060.0,98058.0,0.13614536]
[1732435051735,0.0017186,98060.0,98057.0,0.0789]
[1732435052160,0.0017186,98060.0,98056.0,0.3068063]
[1732435052593,0.0017186,98060.0,98057.0,0.15]
[1732435065937,0.0017186,98060.0,98057.0,0.1508593]
[1732435072993,0.001719,98063.0,98058.0,0.0464]
[1732435073205,0.0498,98075.0,98059.0,0.2307]
[1732435073417,0.0498,98075.0,98060.0,0.39836967]
[1732435073624,0.0498,98075.0,98061.0,0.15]
[1732435073845,0.0498,98075.0,98063.0,0.15]
[1732435074021,0.0498,98075.0,98065.0,0.15]
[1732435076554,0.0835188,98081.0,98065.0,0.15]
[1732435076555,0.0498,98078.0,98065.0,0.15]
[1732435078041,0.0017186,98075.0,98065.0,0.15]
[1732435080132,0.0017186,98075.0,98066.0,0.12301963]
[1732435080327,0.0017186,98075.0,98067.0,0.15]
[1732435080575,0.0017186,98075.0,98068.0,0.00101959]
[1732435080982,0.0017186,98075.0,98069.0,0.39732]
[1732435081178,0.0017186,98075.0,98070.0,0.15]
[1732435081413,0.0017186,98075.0,98072.0,0.15]
[1732435082832,0.0017186,98075.0,98074.0,0.15]
[1732435084017,0.0017188,98081.0,98074.0,0.15]
[1732435088269,0.0017188,98081.0,98074.0,0.15101958]
[1732435089470,0.0014586,98079.0,98074.0,0.15101958]
[1732435096438,0.0017188,98081.0,98074.0,0.15101958]
[1732435099992,0.0017188,98081.0,98080.0,1.299152]
[1732435102272,0.0017188,98081.0,98080.0,1.07034127]
[1732435103119,0.0017188,98081.0,98080.0,0.7568194]
[1732435103913,0.0479,98097.0,98081.0,0.15]
[1732435104122,0.0479,98097.0,98081.0,0.15101946]
[1732435105567,0.0479,98097.0,98080.0,0.48660672]
[1732435105803,0.0479,98097.0,98081.0,0.00101946]
[1732435106955,0.00101946,98096.0,98081.0,0.00101946]
[1732435107644,0.00101946,98096.0,98081.0,0.15101946]
[1732435108071,0.0479,98097.0,98081.0,0.15101946]
[1732435108305,0.0479,98097.0,98083.0,0.15]
[1732435108518,0.0479,98097.0,98084.0,0.00101942]
[1732435109927,0.0479,98107.0,98087.0,0.023]
[1732435110174,0.0479,98107.0,98089.0,0.173]
[1732435110175,0.04602104,98107.0,98089.0,0.173]
[1732435110426,0.0756,98117.0,98091.0,0.173]
[1732435110633,0.00101946,98116.0,98093.0,0.173]
[1732435110835,0.00101946,98116.0,98095.0,0.173]
[1732435111045,0.00101946,98116.0,98097.0,0.15]
[1732435111244,0.0756,98117.0,98098.0,0.00101926]
[1732435111457,0.0756,98117.0,98099.0,0.15]
[1732435111666,0.0756,98117.0,98099.0,0.15101926]
[1732435112290,0.0008596,98119.0,98100.0,0.0762]
[1732435112498,0.0008596,98119.0,98100.0,0.07721926]
[1732435112906,0.0008596,98119.0,98102.0,0.15]
[1732435113116,0.0008596,98119.0,98104.0,0.15]
[1732435113321,0.0008596,98119.0,98105.0,0.227323]
[1732435113520,0.0008596,98119.0,98106.0,0.15]
[1732435114252,0.0008596,98119.0,98108.0,0.15]
[1732435117228,0.0008596,98119.0,98109.0,0.0478]
[1732435117495,0.0008596,98119.0,98110.0,0.2262]
[1732435119149,0.0008596,98119.0,98112.0,0.15]
[1732435120028,0.0008596,98119.0,98111.0,0.53571404]
[1732435120550,0.0465,98118.0,98111.0,0.53571404]
[1732435122223,0.0465,98118.0,98112.0,0.15]
[1732435123432,0.0008596,98119.0,98112.0,0.15]
[1732435123899,0.000859,98118.0,98114.0,0.15]
[1732435124355,0.0263972,98131.0,98114.0,0.15]
[1732435124931,0.0263972,98131.0,98114.0,0.198]
[1732435125396,0.32094628,98162.0,98115.0,0.0828]
[1732435125669,0.00127385,98153.0,98115.0,0.0828]
[1732435125874,0.00127385,98152.0,98115.0,0.0828]
[1732435126999,0.00127385,98151.0,98115.0,0.0828]
[1732435127403,0.1243,98150.0,98115.0,0.0828]